lending/lending_fUSD_20240806
["ID","MTS","AMOUNT","RATE_DAILY","PERIOD"]
[334309492,1722939432489,150.080619,0.00027,120]
[334309493,1722939433030,150.080619,0.00027,120]
[334309494,1722939433547,150.080619,0.00027,120]
[334309495,1722939434111,150.080619,0.00027,120]
[334309496,1722939434397,500.0,0.00027,120]
[334309497,1722939434651,150.080619,0.00027,120]
[334309498,1722939435173,150.080619,0.00027,120]
[334309499,1722939435745,150.080619,0.00027,120]
[334309500,1722939436270,150.080619,0.00027,120]
[334309501,1722939436791,150.080619,0.00027,120]
[334309502,1722939437349,150.080619,0.00027,120]
[334309503,1722939437874,150.080619,0.00027,120]
[334309504,1722939438441,150.080619,0.00027,120]
[334309505,1722939439010,150.080619,0.00027,120]
[334309510,1722939507910,151.080619,0.00025,60]
[334309511,1722939509958,151.080619,0.00025,60]
[334309512,1722939510023,151.080619,0.00025,60]
[334309513,1722939510145,151.080619,0.00025,60]
[334309514,1722939510700,151.080619,0.00025,60]
[334309516,1722939521139,151.080619,0.00027,120]
[334309517,1722939521291,151.080619,0.00027,120]
[334309518,1722939521353,151.080619,0.00027,120]
[334309519,1722939521686,151.080619,0.00027,120]
[334309522,1722939522273,151.080619,0.00027,120]
[334309523,1722939530397,151.080619,0.00027,120]
[334309524,1722939530867,151.080619,0.00027,120]
[334309528,1722939573152,286.080619,0.00025,60]
[334309531,1722939584168,150.0,0.00027,120]
[334309534,1722939595920,500.0,0.00027,120]
[334309537,1722939642095,500.0,0.00027,120]
[334309538,1722939654922,500.0,0.00027,120]
[334309539,1722939664621,500.0,0.00027,120]
[334309540,1722939689042,500.0,0.00027,120]
[334309542,1722939712245,500.0,0.00027,120]
[334309545,1722939767672,667.5,8.219e-05,2]
[334309548,1722939799815,500.0,8.153e-05,2]
[334309549,1722939800168,500.0,0.00026348,120]
[334309550,1722939801151,155.11792759,8.219e-05,2]
[334309551,1722939803629,155.0,8.219e-05,2]
[334309552,1722939803751,363.87131843,8.219e-05,2]
[334309553,1722939803934,227.65723628,8.219e-05,2]
[334309554,1722939804150,425.73118234,8.219e-05,2]
[334309556,1722939804744,155.0,8.219e-05,2]
[334309557,1722939805162,199.89940857,8.219e-05,2]
[334309558,1722939805286,485.439575,8.219e-05,2]
[334309559,1722939805684,155.0,8.219e-05,2]
[334309560,1722939805831,291.48744605,8.219e-05,2]
[334309561,1722939805867,411.77126186,8.219e-05,2]
[334309562,1722939806996,1268.38387018,8.219e-05,2]
[334309564,1722939811473,692.92070415,8.219e-05,2]
[334309565,1722939811764,7575.83905844,8.219e-05,2]
[334309566,1722939811815,871.90912739,8.219e-05,2]
[334309567,1722939811978,155.0,8.219e-05,2]
[334309568,1722939812475,2288.79990132,8.219e-05,2]
[334309569,1722939812795,155.0,8.219e-05,2]
[334309570,1722939812836,155.0,8.219e-05,2]
[334309571,1722939812930,49906.8719824,8.219e-05,2]
[334309572,1722939812956,11191.0265616,8.219e-05,2]
[334309573,1722939812985,47060.28,8.219e-05,2]
[334309574,1722939813009,75460.05374981,8.219e-05,2]
[334309575,1722939813053,1309.58171723,8.219e-05,2]
[334309577,1722939814679,760.0623867,8.219e-05,2]
[334309578,1722939816343,155.0,8.219e-05,2]
[334309579,1722939817462,1223.25712509,8.219e-05,2]
[334309580,1722939817884,200.0,0.0002656,120]
[334309581,1722939820702,1370.80088664,8.219e-05,2]
[334309582,1722939824452,14353.97907086,8.219e-05,2]
[334309583,1722939824481,155.0,8.219e-05,2]
[334309584,1722939826170,790.7530928,8.219e-05,2]
[334309585,1722939826252,1284.55129819,8.219e-05,2]
[334309586,1722939826954,158.9995564,8.219e-05,2]
[334309588,1722939835456,14353.97907086,8.219e-05,2]
[334309589,1722939835964,1284.55129819,8.219e-05,2]
[334309593,1722939877790,363.87131843,8.219e-05,2]
[334309594,1722939895767,291.48744605,8.219e-05,2]
[334309595,1722939899170,425.73118234,8.219e-05,2]
[334309596,1722939899992,155.0,8.219e-05,2]
[334309597,1722939902935,1268.38387018,8.219e-05,2]
[334309599,1722939906173,760.0623867,8.219e-05,2]
[334309600,1722939906205,155.0,8.219e-05,2]
[334309601,1722939906357,155.0,8.219e-05,2]
[334309602,1722939906387,485.439575,8.219e-05,2]
[334309603,1722939907439,897.51477935,8.219e-05,2]
[334309604,1722939907985,183618.23229381,8.219e-05,2]
[334309605,1722939910367,155.0,8.219e-05,2]
[334309606,1722939913840,237.57257659,8.219e-05,2]
[334309607,1722939917685,790.7530928,8.219e-05,2]
[334309608,1722939917839,155.0,8.219e-05,2]
[334309609,1722939918040,1309.58171723,8.219e-05,2]
[334309610,1722939925822,871.90912739,8.219e-05,2]
[334309611,1722939927470,1223.25712509,8.219e-05,2]
[334309612,1722939929046,692.92070415,8.219e-05,2]
[334309613,1722939930379,1052.04861046,8.219e-05,2]
[334309614,1722939932925,1268.38387018,8.219e-05,2]
[334309615,1722939938461,155.0,8.219e-05,2]
[334309616,1722939941557,155.0,8.219e-05,2]
[334309617,1722939945460,1223.25712509,8.219e-05,2]
[334309619,1722939952980,1125.36012787,8.219e-05,2]
[334309620,1722939959746,363.87131843,8.219e-05,2]
[334309621,1722939983315,500.0,0.00027,120]
[334309622,1722939990005,227.65723628,8.219e-05,2]
[334309623,1722939990687,500.0,0.00027,120]
[334309624,1722939992000,425.73118234,8.219e-05,2]
[334309625,1722939994207,760.0623867,8.219e-05,2]
[334309626,1722939994454,485.439575,8.219e-05,2]
[334309627,1722939998243,500.0,0.00027,120]
[334309628,1722939998696,268.19312809,8.219e-05,2]
[334309629,1722940001810,291.48744605,8.219e-05,2]
[334309630,1722940002023,155.0,8.219e-05,2]
[334309631,1722940005113,500.0,0.00027,120]
[334309633,1722940006874,155.16912908,8.219e-05,2]
[334309634,1722940006970,158.9995564,8.219e-05,2]
[334309635,1722940007024,692.92070415,8.219e-05,2]
[334309636,1722940007293,155.0,8.219e-05,2]
[334309637,1722940009588,790.7530928,8.219e-05,2]
[334309638,1722940009645,4844.25705738,8.219e-05,2]
[334309639,1722940013099,500.0,0.00027,120]
[334309640,1722940015401,155.53277144,8.219e-05,2]
[334309641,1722940018024,155.0,8.219e-05,2]
[334309642,1722940018868,871.90912739,8.219e-05,2]
[334309643,1722940021284,500.0,0.00027,120]
[334309644,1722940024103,1309.58171723,8.219e-05,2]
[334309645,1722940025749,257.82119532,8.219e-05,2]
[334309646,1722940028702,500.0,0.00027,120]
[334309647,1722940040032,301.72431998,8.219e-05,2]
[334309648,1722940044122,559.5846039,0.00027,120]
[334309670,1722940047786,363.87131843,8.219e-05,2]
[334309671,1722940047923,1268.38387018,8.219e-05,2]
[334309672,1722940060092,901.08655569,8.219e-05,2]
[334309673,1722940068466,227.65723628,8.219e-05,2]
[334309674,1722940075174,760.0623867,8.219e-05,2]
[334309675,1722940084688,425.73118234,8.219e-05,2]
[334309676,1722940089764,291.48744605,8.219e-05,2]
[334309678,1722940095308,485.439575,8.219e-05,2]
[334309679,1722940100669,158.9995564,8.219e-05,2]
[334309680,1722940114762,916.186817,9.561e-05,2]
[334309681,1722940117287,155.0,8.219e-05,2]
[334309682,1722940120341,1309.58171723,8.219e-05,2]
[334309683,1722940131848,871.90912739,8.219e-05,2]
[334309684,1722940139863,871.90912739,8.219e-05,2]
[334309685,1722940146934,1268.38387018,8.219e-05,2]
[334309687,1722940150013,692.92070415,8.219e-05,2]
[334309689,1722940163170,790.7530928,8.219e-05,2]
[334309692,1722940175247,155.0,8.219e-05,2]
[334309693,1722940175923,411.77126186,8.219e-05,2]
[334309694,1722940181068,765.34342831,8.219e-05,2]
[334309695,1722940181473,158.71449343,8.219e-05,2]
[334309696,1722940191897,227.65723628,8.219e-05,2]
[334309697,1722940203302,1309.58171723,8.219e-05,2]
[334309698,1722940208963,150.0,8.219e-05,2]
[334309699,1722940209166,150.0,8.219e-05,2]
[334309700,1722940209365,150.0,8.219e-05,2]
[334309701,1722940209568,150.0,8.219e-05,2]
[334309702,1722940209765,150.0,8.219e-05,2]
[334309703,1722940210043,150.0,8.219e-05,2]
[334309704,1722940210229,150.0,8.219e-05,2]
[334309705,1722940210408,150.0,8.219e-05,2]
[334309706,1722940219061,150.0,8.219e-05,2]
[334309707,1722940219275,150.0,8.219e-05,2]
[334309708,1722940219449,150.0,8.219e-05,2]
[334309709,1722940219629,150.0,8.219e-05,2]
[334309710,1722940219814,150.0,8.219e-05,2]
[334309711,1722940219999,150.0,8.219e-05,2]
[334309712,1722940220192,150.0,8.219e-05,2]
[334309713,1722940220363,150.0,8.219e-05,2]
[334309714,1722940220546,150.0,8.219e-05,2]
[334309715,1722940220712,150.0,8.219e-05,2]
[334309716,1722940220883,150.0,8.219e-05,2]
[334309717,1722940221058,150.0,8.219e-05,2]
[334309718,1722940221222,150.0,8.219e-05,2]
[334309719,1722940221412,150.0,8.219e-05,2]
[334309720,1722940221586,150.0,8.219e-05,2]
[334309721,1722940221772,150.0,8.219e-05,2]
[334309722,1722940221947,150.0,8.219e-05,2]
[334309723,1722940222122,150.0,8.219e-05,2]
[334309724,1722940222397,150.0,8.219e-05,2]
[334309725,1722940222572,150.0,8.219e-05,2]
[334309726,1722940222748,150.0,8.219e-05,2]
[334309727,1722940222915,150.0,8.219e-05,2]
[334309728,1722940223089,150.0,8.219e-05,2]
[334309729,1722940223555,150.0,8.219e-05,2]
[334309730,1722940223742,199.62200959,8.219e-05,2]
[334309745,1722940232323,-250.0,9.707e-05,2]
[334309746,1722940232333,-900.96,9.752e-05,2]
[334309747,1722940232342,-761.95,9.782e-05,2]
[334309748,1722940232352,-723.35,9.804e-05,2]
[334309749,1722940232362,-805.16,9.927e-05,2]
[334309750,1722940232371,-241.71,9.943e-05,2]
[334309751,1722940232381,-115.2177175,9.961e-05,2]
[334309752,1722940232392,-184.7822825,9.961e-05,2]
[334309753,1722940232402,-871.90912739,9.962e-05,2]
[334309754,1722940232412,-824.71671492,9.962e-05,2]
[334309755,1722940232423,-486.24442922,9.962e-05,2]
[334309756,1722940232433,-790.7530928,9.962e-05,2]
[334309757,1722940232442,-591.86630365,9.962e-05,2]
[334309758,1722940232452,-1268.38387018,9.962e-05,2]
[334309759,1722940232461,-411.77126186,9.962e-05,2]
[334309760,1722940232471,-966.65,9.983e-05,2]
[334309761,1722940232481,-432.47,9.984e-05,2]
[334309762,1722940232490,-238.05,9.988e-05,2]
[334309763,1722940232500,-164.84,0.00010106,2]
[334309764,1722940232509,-168.42,0.00010114,2]
[334309765,1722940232519,-349.38997064,0.00010474,2]
[334309766,1722940232530,-318.11002936,0.00010474,2]
[334309767,1722940232549,-707.65,0.000105,2]
[334309768,1722940232560,-7521.53371679,0.0001088,2]
[334309769,1722940232571,-563.10986677,0.0001088,2]
[334309770,1722940232582,-486.61826601,0.0001088,2]
[334309771,1722940232593,-826.32428039,0.0001088,2]
[334309772,1722940232604,-4823.31881939,0.0001088,2]
[334309773,1722940232615,-1629.06500109,0.0001088,2]
[334309774,1722940232627,-1235.66988396,0.0001088,2]
[334309777,1722940238224,-267.40086276,9.962e-05,2]
[334309778,1722940238233,-172.55772154,0.0001088,2]
[334309779,1722940238573,-1165.26374629,0.0001088,2]
[334310345,1722940246673,-227.65723628,9.962e-05,2]
[334310346,1722940246683,-1309.58171723,9.962e-05,2]
[334310347,1722940246693,-739.67763408,0.0001088,2]
[334310348,1722940246704,-1588.29413156,0.0001088,2]
[334310349,1722940246755,-10718.44883407,0.0001088,2]
[334310350,1722940246765,-2023.22477,0.0001089,2]
[334310351,1722940246775,-1000.0,0.000109,2]
[334310352,1722940246784,-186.04186723,0.000109,2]
[334310353,1722940246794,-1033.1993,0.000109,2]
[334310354,1722940246806,-170.82621958,0.000109,2]
[334310355,1722940246816,-152.35222135,0.000109,2]
[334310356,1722940246827,-938.2606597,0.000109,2]
[334310357,1722940246837,-854.87766673,0.000109,2]
[334310358,1722940246848,-420.0,0.00010957,2]
[334310359,1722940246860,-250.0,0.00010959,2]
[334310360,1722940246879,-2000.0,0.00010959,2]
[334310362,1722940246897,-153.23,0.0001099,2]
[334310363,1722940246911,-1118.65632901,0.00010999,3]
[334310364,1722940246920,-1937.05551355,0.00010999,2]
[334310365,1722940246930,-171605.92401631,0.00011,2]
[334310366,1722940246955,-550.511032,0.00011,2]
[334310367,1722940320704,600.75,8.842e-05,2]
[334310368,1722940361949,1268.38387018,8.842e-05,2]
[334310369,1722940368861,893.7854736,8.842e-05,2]
[334310370,1722940382881,411.77126186,8.842e-05,2]
[334310371,1722940391189,891.80318475,8.842e-05,2]
[334310372,1722940395356,1309.58171723,8.842e-05,2]
[334310374,1722940410137,500.0,8.771e-05,2]
[334310375,1722940411205,500.0,0.00026348,120]
[334310377,1722940420134,200.0,0.0002656,120]
[334310378,1722940423267,267.40086276,8.842e-05,2]
[334310379,1722940463928,1268.38387018,8.842e-05,2]
[334310380,1722940491559,1309.58171723,8.842e-05,2]
[334310381,1722940494879,411.77126186,8.842e-05,2]
[334310382,1722940534511,227.65723628,8.842e-05,2]
[334310383,1722940580943,507.39218731,8.842e-05,2]
[334310384,1722940583555,1309.58171723,8.842e-05,2]
[334310385,1722940681567,1309.58171723,8.842e-05,2]
[334310386,1722940790451,570.71,8.219e-05,2]
[334310387,1722940802837,1309.35397093,8.842e-05,2]
[334310395,1722941000716,500.0,8.771e-05,2]
[334310396,1722941001141,500.0,0.00026348,120]
[334310397,1722941009495,200.0,0.0002656,120]
[334310409,1722941169578,1000.0,0.000258,120]
[334310469,1722941406507,-390.44,9.694e-05,2]
[334310470,1722941406537,-153.92,9.699e-05,2]
[334310471,1722941406565,-296.38383182,9.699e-05,2]
[334310472,1722941406593,-140.19912666,9.709e-05,2]
[334310483,1722941432458,-51.05087334,9.709e-05,2]
[334310484,1722941432468,-609.56,9.736e-05,2]
[334310485,1722941432478,-1409.36,9.853e-05,2]
[334310486,1722941432488,-824.37,9.86e-05,2]
[334310487,1722941432497,-150.0,0.00010274,2]
[334310488,1722941432507,-203.28,0.00010371,2]
[334310489,1722941432517,-570.71,0.00010458,2]
[334310490,1722941432528,-981.018,0.00010543,2]
[334310491,1722941432538,-150.0,0.00010664,2]
[334310492,1722941432548,-150.0,0.00010699,2]
[334310493,1722941432558,-150.0,0.0001071,2]
[334310494,1722941432568,-194.91725764,0.00010717,2]
[334310495,1722941432577,-150.0,0.00010761,2]
[334310496,1722941432587,-150.0,0.00010763,2]
[334310497,1722941432597,-150.0,0.00010777,2]
[334310498,1722941432606,-170.26857211,0.00010788,2]
[334310499,1722941432625,-150.0,0.00010788,2]
[334310500,1722941432637,-220.7,0.000108,2]
[334310501,1722941432647,-150.0,0.00010823,2]
[334310502,1722941432659,-150.0,0.00010845,2]
[334310503,1722941432669,-150.0,0.00010847,2]
[334310504,1722941432679,-150.0,0.00010861,2]
[334310505,1722941432688,-150.0,0.00010862,2]
[334310506,1722941432698,-150.0,0.00010871,2]
[334310507,1722941432707,-150.0,0.00010871,2]
[334310508,1722941432717,-300.0,0.00010871,2]
[334310509,1722941432727,-300.0,0.00010889,2]
[334310510,1722941432736,-4003.8534,0.0001089,2]
[334310511,1722941432746,-818.52886805,0.00010897,2]
[334310512,1722941432756,-186.04186723,0.000109,2]
[334310513,1722941432766,-809.77801497,0.000109,2]
[334310514,1722941432778,-390.44,0.00010905,2]
[334310515,1722941432787,-150.0,0.00010931,2]
[334310516,1722941432797,-609.56,0.00010953,2]
[334310517,1722941432807,-154.82,0.0001098,2]
[334310519,1722941432817,-500.0,0.00010989,2]
[334310521,1722941432826,-500.0,0.00010989,2]
[334310523,1722941432835,-635.35107831,0.00010989,2]
[334310525,1722941432845,-237631.10644011,0.0001099,3]
[334310527,1722941432858,-7436.83739313,0.0001099,3]
[334310530,1722941432875,-4833.61660523,0.0001099,3]
[334310532,1722941432886,-444.81492525,0.0001099,3]
[334310534,1722941432898,-990.05544266,0.0001099,3]
[334310545,1722941438835,-159.38,9.859e-05,2]
[334310546,1722941438848,-1791.11742059,0.00010987,2]
[334310548,1722941438923,-544.01346895,0.00010987,2]
[334310613,1722941440699,-5005.93905,0.00010987,2]
[334310679,1722941441379,-524.59386924,0.00010987,2]
[334310681,1722941441393,-159254.87361382,0.0001099,3]
[334310684,1722941441411,-692596.7353599,0.0001099,3]
[334310755,1722941443559,-1144.36375668,0.0001099,3]
[334310756,1722941443641,-320.26401847,0.0001099,3]
[334310757,1722941443656,-802.06340159,0.0001099,3]
[334310760,1722941444582,-1963.95623651,0.0001099,3]
[334310761,1722941444593,-3918.7910805,0.0001099,3]
[334310765,1722941447673,-264.56933083,0.00010734,2]
[334310766,1722941447684,-2079.33106217,0.00010734,2]
[334310767,1722941447694,-1206.09817827,0.0001099,3]
[334310768,1722941447705,-346.76974357,0.0001099,3]
[334310769,1722941448875,-118356.87337457,0.0001099,3]
[334310770,1722941448887,-4940.94527216,0.0001099,3]
[334310771,1722941448899,-850.0,0.0001099,3]
[334310772,1722941448910,-768.85,0.0001099,3]
[334310773,1722941448923,-432.77116256,0.0001099,3]
[334310774,1722941448935,-5604.99033492,0.0001099,3]
[334310775,1722941456991,544.86,8.713e-05,2]
[334310777,1722941522463,1633.59875536,8.713e-05,2]
[334310778,1722941524383,2564.82275485,8.713e-05,2]
[334310779,1722941524989,1370.80088664,8.713e-05,2]
[334310780,1722941527769,20383.48369628,8.713e-05,2]
[334310782,1722941530674,183618.23229381,8.713e-05,2]
[334310785,1722941537818,3069.47280244,8.713e-05,2]
[334310786,1722941539188,1345.60861045,8.713e-05,2]
[334310789,1722941606178,500.0,8.643e-05,2]
[334310790,1722941618792,1915.0,0.00027,120]
[334310791,1722941620110,2564.82275485,8.713e-05,2]
[334310792,1722941629984,1370.80088664,8.713e-05,2]
[334310793,1722941649170,3069.47280244,8.713e-05,2]
[334310794,1722941658781,17720.5986585,8.713e-05,2]
[334310795,1722941664099,3069.47280244,8.713e-05,2]
[334310796,1722941690355,2564.82275485,8.713e-05,2]
[334310797,1722941696400,20000.0,0.00027,120]
[334310798,1722941702169,500.0,0.00027,120]
[334310799,1722941703424,500.0,0.00027,120]
[334310800,1722941704404,500.0,0.00027,120]
[334310801,1722941709450,500.0,0.00027,120]
[334310802,1722941709507,500.0,0.00027,120]
[334310803,1722941710686,500.0,0.00027,120]
[334310804,1722941711905,500.0,0.00027,120]
[334310805,1722941716589,500.0,0.00027,120]
[334310806,1722941717650,500.0,0.00027,120]
[334310807,1722941719851,500.0,0.00027,120]
[334310808,1722941731380,172.71314031,0.00027,120]
[334310817,1722942020677,548.79,8.219e-05,2]
[334310818,1722942066140,3069.47280244,8.219e-05,2]
[334310819,1722942067408,2564.82275485,8.219e-05,2]
[334310820,1722942081946,3069.47280244,8.219e-05,2]
[334310821,1722942155388,2567.4415947,8.219e-05,2]
[334310822,1722942184269,1745.17646915,8.219e-05,2]
[334310823,1722942201889,500.0,8.153e-05,2]
[334310825,1722942332734,-250.0,9.823e-05,2]
[334310826,1722942332763,-3290.48,9.823e-05,2]
[334310827,1722942332792,-300.0,9.829e-05,2]
[334310828,1722942332821,-3159.52,9.83e-05,2]
[334310829,1722942358388,2000.0,0.00027,120]
[334310830,1722942359007,1500.0,0.00025,60]
[334310839,1722942512366,601.0,0.00027,120]
[334310841,1722942538142,521.35,8.219e-05,2]
[334310855,1722942631614,-36.83,9.83e-05,2]
[334310856,1722942631624,-365.74,9.839e-05,2]
[334310857,1722942631633,-203.28,9.839e-05,2]
[334310858,1722942631643,-400.68873054,9.856e-05,2]
[334310859,1722942631730,-1061.42126946,9.856e-05,2]
[334310860,1722942631740,-23900.0,9.863e-05,2]
[334310861,1722942631749,-2776.82,9.872e-05,2]
[334310862,1722942631759,-151.32101212,9.888e-05,2]
[334310863,1722942631768,-265.9,9.909e-05,2]
[334310864,1722942631779,-634.26,0.00010126,2]
[334310865,1722942631788,-499.99,0.00010126,2]
[334310866,1722942631801,-178.44,0.00010371,2]
[334310867,1722942631813,-521.35,0.00010469,2]
[334310868,1722942631822,-1784.71572669,0.00010561,2]
[334310869,1722942631831,-1412.30627252,0.00010561,2]
[334310870,1722942631841,-150.0,0.00010756,2]
[334310871,1722942631851,-150.0,0.00010761,2]
[334310872,1722942631860,-300.0,0.00010767,2]
[334310873,1722942631870,-150.0,0.00010771,2]
[334310874,1722942631879,-150.0,0.00010789,2]
[334310875,1722942631888,-150.0,0.00010809,2]
[334310876,1722942631897,-150.0,0.00010846,2]
[334310877,1722942631906,-150.0,0.00010868,2]
[334310878,1722942631916,-150.0,0.00010875,2]
[334310879,1722942631926,-150.0,0.0001088,2]
[334310880,1722942631935,-7476.2555,0.0001089,2]
[334310881,1722942631944,-1079.999,0.0001089,2]
[334310882,1722942631954,-2500.0,0.0001089,2]
[334310883,1722942631963,-150.0,0.00010891,2]
[334310884,1722942631972,-150.0,0.00010894,2]
[334310885,1722942631982,-309.14810697,0.000109,2]
[334310886,1722942631991,-213.62877643,0.000109,2]
[334310887,1722942632001,-7500.0,0.000109,2]
[334310888,1722942632010,-830.96331902,0.000109,2]
[334310889,1722942632021,-2101.34261841,0.000109,2]
[334310890,1722942632031,-150.0,0.00010937,2]
[334310891,1722942632040,-150.0,0.00010942,2]
[334310892,1722942632061,-1480.47,0.00010959,2]
[334310893,1722942632070,-250.0,0.00010959,2]
[334310894,1722942632079,-670.98,0.00010959,2]
[334310895,1722942632088,-150.0,0.00010988,2]
[334310896,1722942632097,-3000.0,0.00010989,2]
[334310897,1722942632106,-3000.0,0.00010989,2]
[334310898,1722942632115,-2023.22477,0.00010989,2]
[334310899,1722942632124,-2023.22477,0.00010989,2]
[334310900,1722942632134,-2023.22477,0.00010989,2]
[334310901,1722942632143,-2023.22477,0.00010989,2]
[334310902,1722942632152,-3000.0,0.00010989,2]
[334310903,1722942632162,-314349.95721249,0.0001099,3]
[334310904,1722942632171,-1349.71499901,0.00010997,2]
[334310905,1722942632180,-7159.3692765,0.00010998,2]
[334310906,1722942632189,-210.73709247,0.00010999,2]
[334310907,1722942632199,-438.5169696,0.00010999,2]
[334310908,1722942632208,-500.0,0.00010999,2]
[334310909,1722942632217,-644.74575481,0.00010999,2]
[334310910,1722942632226,-537.0,0.00011,2]
[334310911,1722942632235,-214278.18618094,0.00011,2]
[334311048,1722942640100,-197.76517603,0.000109,2]
[334311054,1722942640110,-82.60687069,0.00010999,2]
[334311059,1722942640122,-275.860585,0.00010999,2]
[334311070,1722942640163,-6.96335231,0.00010999,2]
[334311072,1722942640173,-892.65029257,0.00011,2]
[334311097,1722942641528,500.0,0.00027,120]
[334311106,1722942642809,-305.68623205,0.00010999,2]
[334311107,1722942642819,-914.12085599,0.00011,2]
[334311108,1722942642892,-323.9163485,0.00011,2]
[334311110,1722942643082,-1077.93307112,0.00011,2]
[334311150,1722942645799,-481.61185414,0.00011,2]
[334311151,1722942645816,-2560.84472857,0.00011,2]
[334311153,1722942646199,-290.45774282,0.00011,2]
[334311155,1722942646212,-718.7499,0.00011,2]
[334311159,1722942671640,500.0,0.00027,120]
[334311160,1722942691188,500.0,0.00027,120]
[334311161,1722942698394,643.0,0.00027,120]
[334311162,1722942751659,500.0,0.00027,120]
[334311163,1722942771413,500.0,0.00027,120]
[334311164,1722942777584,500.0,0.00027,120]
[334311165,1722942801510,500.0,0.00027,120]
[334311166,1722942807684,500.0,0.00027,120]
[334311167,1722942822036,500.0,0.00027,120]
[334311172,1722943028719,469.21,8.253e-05,2]
[334311174,1722943462573,500.0,0.00025,60]
[334311175,1722943477549,500.0,0.00025,60]
[334311177,1722943520090,7567.39379522,9e-05,2]
[334311178,1722943555755,5881.25464484,6.94e-05,2]
[334311193,1722943662280,500.0,0.00027,120]
[334311195,1722943741336,500.0,0.00027,120]
[334311196,1722943745295,445.74,8.219e-05,2]
[334311226,1722943832046,-4819.72288881,9.962e-05,2]
[334311227,1722943832114,-1800.0,9.962e-05,2]
[334311229,1722943832362,-4843.30926104,9.962e-05,2]
[334311369,1722943839633,-1080.68345125,9.962e-05,2]
[334311370,1722943839646,-253.70482749,9.962e-05,2]
[334311371,1722943839658,-1544.59791416,9.962e-05,2]
[334311372,1722943839693,-1014.6173005,9.962e-05,2]
[334311394,1722943840103,-4343.74327451,9.962e-05,2]
[334311396,1722943840112,-1256.82211044,9.962e-05,2]
[334311398,1722943840122,-1256.82211044,9.962e-05,2]
[334311399,1722943840132,-159.4,0.00010126,2]
[334311400,1722943840143,-292.6,0.00010133,2]
[334311401,1722943840153,-300.0,0.00010135,2]
[334311402,1722943840163,-8960.02918385,0.00010136,2]
[334311404,1722943840240,-300.0,0.00010136,2]
[334311405,1722943840251,-1765.19999999,0.00010136,2]
[334311406,1722943840263,-701.66503495,0.00010136,2]
[334311407,1722943840577,-1209.49724686,0.00010136,2]
[334311408,1722943840677,-2015.94855758,0.00010136,2]
[334311409,1722943840688,-275.66,0.00010136,2]
[334311434,1722943843140,-895.88804481,0.00010136,2]
[334311435,1722943843152,-823.52658831,0.00010136,2]
[334311436,1722943846290,-1216.07779227,0.00010136,2]
[334311437,1722943846302,-1193.28658012,0.00010136,2]
[334311438,1722943846355,-4543.22097126,0.00010136,2]
[334311439,1722943846364,-707.4,0.00010234,2]
[334311440,1722943846375,-155.4,0.00010275,2]
[334311441,1722943846384,-445.74,0.00010482,2]
[334311442,1722943846394,-900.03047775,0.0001089,2]
[334311447,1722944185790,20000.0,0.00027,120]
[334311452,1722944296132,401.16,8.219e-05,2]
[334311455,1722944473045,357.59766149,0.00027,120]
[334311457,1722944488821,327.86231569,0.00027,120]
[334311459,1722944601185,500.0,0.00027,120]
[334311461,1722944671296,150.0,0.00027,120]
[334311468,1722944927656,381.1,8.219e-05,2]
[334311541,1722945032751,-150.66623924,9.888e-05,2]
[334311544,1722945032766,-184.34786398,9.962e-05,2]
[334311546,1722945032782,-1000.0,0.00010044,2]
[334311549,1722945032796,-155.4,0.0001006,2]
[334311551,1722945032809,-178.0,0.00010085,2]